bitfinex-derivatives/quotes_SOLF0:USTF0_20240910
["timestamp","ask_amount","ask_price","bid_price","bid_amount"]
[1725952449041,1.3107,134.23,134.2,9.18]
[1725952449457,25.7219,134.25,134.21,9.18]
[1725952449856,22.37,134.25,134.21,9.18]
[1725952450052,25.7216,134.26,134.21,12.5326]
[1725952450248,22.37,134.26,134.22,9.18]
[1725952450652,22.37,134.26,134.22,12.5323]
[1725952451353,22.37,134.26,134.23,3.3522]
[1725952453051,1.275,134.27,134.24,3.3519]
[1725952453564,1.275,134.27,134.25,3.3517]
[1725952453759,25.7209,134.29,134.25,3.3517]
[1725952456062,34.9012,134.28,134.24,3.3519]
[1725952456260,36.2665,134.28,134.24,3.3519]
[1725952456461,3.3513,134.27,134.23,12.5321]
[1725952456859,3.3513,134.27,134.23,3.3521]
[1725952460763,22.37,134.27,134.23,12.5321]
[1725952460957,22.37,134.27,134.24,3.352]
[1725952467477,22.37,134.27,134.23,12.5321]
[1725952467678,25.7215,134.26,134.2,3.69382451]
[1725952467875,25.7215,134.26,134.21,3.3527]
[1725952468072,31.55,134.26,134.21,12.5327]
[1725952468472,3.3518,134.25,134.21,12.5327]
[1725952468675,31.55,134.26,134.21,12.5327]
[1725952468873,31.55,134.26,134.2,3.64754877]
[1725952469068,22.37,134.24,134.2,3.3529]
[1725952469274,22.37,134.24,134.2,7.06415327]
[1725952469576,22.37,134.24,134.19,9.18]
[1725952469877,22.37,134.24,134.19,12.96166352]
[1725952470878,22.37,134.24,134.2,3.3529]
[1725952471875,22.37,134.24,134.19,12.96166352]
[1725952471876,22.37,134.25,134.16,2.6572]
[1725952472083,22.37,134.25,134.21,9.18]
[1725952472285,22.37,134.25,134.21,16.24701462]
[1725952472477,22.37,134.25,134.21,12.89441462]
[1725952472672,22.37,134.26,134.22,3.3523]
[1725952472876,22.37,134.26,134.21,12.89441462]
[1725952473684,22.37,134.26,134.22,3.3524]
[1725952475580,3.3514,134.27,134.23,12.5322]
[1725952476184,22.37,134.27,134.24,3.66048792]
[1725952476392,22.37,134.27,134.24,3.352]
[1725952476684,22.37,134.27,134.24,12.532]
[1725952477188,22.37,134.27,134.25,3.6385991]
[1725952492789,25.0998,134.28,134.24,12.532]
[1725952492989,25.0998,134.28,134.17,5.84575731]
[1725952492990,23.7353,134.28,134.25,9.18]
[1725952493596,23.7353,134.28,134.24,12.92869378]
[1725952493896,23.7353,134.28,134.24,9.18]
[1725952494097,23.7353,134.28,134.24,12.5319]
[1725952494500,23.7353,134.28,134.24,16.27351656]
[1725952494696,22.37,134.27,134.24,3.74161656]
[1725952495193,25.7213,134.27,134.24,3.74161656]
[1725952495806,22.37,134.26,134.23,3.3521]
[1725952496302,22.37,134.26,134.23,7.03029089]
[1725952496504,22.37,134.26,134.23,3.3521]
[1725952496700,22.37,134.27,134.23,3.3521]
[1725952497097,22.37,134.27,134.23,7.04929096]
[1725952497297,22.37,134.27,134.22,9.18]
[1725952497298,22.37,134.27,134.24,3.352]
[1725952497896,22.37,134.27,134.23,3.3521]
[1725952501609,22.37,134.27,134.24,12.532]
[1725952506214,22.37,134.27,134.24,9.18]
[1725952506809,22.37,134.26,134.22,3.7217793]
[1725952507112,22.37,134.26,134.21,9.18]
[1725952507309,22.37,134.26,134.21,12.5325]
[1725952507514,22.37,134.26,134.21,16.20557923]
[1725952508015,25.7216,134.26,134.21,16.20557923]
[1725952509415,3.3519,134.25,134.21,3.67307923]
[1725952509713,3.3519,134.25,134.2,12.5329]
[1725952510214,3.3519,134.25,134.2,16.33543353]
[1725952510606,31.55,134.26,134.2,3.80253353]
[1725952510807,1.3675,134.24,134.19,12.5332]
[1725952511003,1.3097,134.23,134.19,3.63487332]
[1725952511212,22.37,134.22,134.18,3.3533]
[1725952511514,22.37,134.22,134.1,3.81547652]
[1725952511515,1.3097,134.23,134.21,9.18]
[1725952513306,1.3097,134.23,134.22,9.18]
[1725952513817,1.3085,134.25,134.22,9.18]
[1725952514021,22.37,134.26,134.23,9.18]
[1725952514209,27.1269,134.28,134.23,9.18]
[1725952514524,1.4059,134.28,134.24,12.532]
[1725952514818,1.4059,134.28,134.24,9.18]
[1725952515207,1.4059,134.28,134.26,9.18]
[1725952516505,1.4059,134.28,134.27,3.79459926]
[1725952520320,1.4059,134.28,134.27,7.14579926]
[1725952522222,25.7203,134.31,134.27,7.14579926]
[1725952522423,27.071,134.31,134.27,7.14579926]
[1725952523423,27.071,134.31,134.28,3.3509]
[1725952526028,27.071,134.31,134.27,7.14579926]
[1725952526425,3.3505,134.3,134.27,7.14579926]
[1725952526622,22.37,134.3,134.27,3.79459926]
[1725952526825,22.37,134.3,134.25,9.18]
[1725952527025,22.37,134.3,134.25,12.86668433]
[1725952527426,25.7207,134.3,134.26,3.3514]
[1725952527625,22.37,134.3,134.25,12.86668433]
[1725952528221,22.37,134.3,134.25,3.68668433]
[1725952528420,22.37,134.3,134.25,9.18]
[1725952528623,22.37,134.3,134.26,3.77532266]
[1725952529228,3.3508,134.29,134.26,3.77532266]
[1725952529931,22.37,134.28,134.16,9.365]
[1725952530129,22.37,134.28,134.23,9.18]
[1725952530331,22.37,134.28,134.23,12.89685116]
[1725952530835,22.37,134.28,134.24,9.18]
[1725952531636,25.7211,134.28,134.25,3.66806283]
[1725952533526,22.37,134.28,134.25,3.66806283]
[1725952536632,25.721,134.28,134.25,3.66806283]
[1725952540437,3.3513,134.27,134.25,3.66806283]
[1725952540730,3.3513,134.27,134.23,12.5321]
[1725952541340,3.3513,134.27,134.23,16.24513102]
[1725952541824,22.37,134.28,134.23,16.24513102]
[1725952542029,25.7211,134.28,134.24,3.352]
[1725952542229,25.7211,134.28,134.24,12.532]
[1725952542430,3.3506,134.3,134.25,9.18]
[1725952543039,3.3506,134.3,134.25,12.5316]
[1725952543230,3.3506,134.3,134.26,3.63423902]
[1725952543636,3.3506,134.3,134.26,6.98563902]
[1725952545132,3.3506,134.3,134.27,3.3512]
[1725952552741,3.3506,134.3,134.28,3.3509]
[1725952553037,3.3506,134.3,134.25,12.83444792]
[1725952553236,3.3506,134.3,134.27,3.3511]
[1725952554639,23.7207,134.31,134.28,9.18]
[1725952555340,1.3507,134.31,134.28,9.18]
[1725952555540,1.3507,134.31,134.29,3.3506]
[1725952555735,1.3507,134.31,134.28,9.18]
[1725952556341,1.3507,134.31,134.28,12.5309]
[1725952558046,22.37,134.3,134.28,12.5309]
[1725952559348,22.37,134.3,134.28,9.18]
[1725952561551,22.37,134.3,134.28,12.5309]
[1725952562652,1.3507,134.31,134.28,12.5309]
[1725952562847,1.3507,134.31,134.28,3.3509]
[1725952563047,22.37,134.3,134.27,12.5312]
[1725952564144,1.3507,134.31,134.27,12.5312]
[1725952568854,28.3709,134.33,134.29,9.18]
[1725952569854,28.3709,134.33,134.3,3.76638434]
[1725952570158,3.3501,134.32,134.24,5.87298271]
[1725952570457,3.3501,134.32,134.28,9.18]
[1725952571249,3.3501,134.32,134.28,12.5308]
[1725952571450,3.3501,134.32,134.29,9.18]
[1725952572352,28.371,134.33,134.29,12.5307]
[1725952573654,9.18,134.36,134.31,9.18]
[1725952574353,9.18,134.36,134.31,12.95150037]
[1725952574549,9.18,134.36,134.31,3.77150037]
[1725952574750,3.3496,134.34,134.3,12.5304]
[1725952574959,9.18,134.35,134.26,1.3888]
[1725952575153,3.3499,134.33,134.3,3.3505]
[1725952575348,3.3499,134.33,134.31,3.72532937]
[1725952575552,3.3499,134.33,134.29,9.18]
[1725952576266,3.3499,134.33,134.29,12.5306]
[1725952581764,3.3496,134.34,134.29,12.5306]
[1725952581965,9.18,134.35,134.29,12.5306]
[1725952583063,3.3498,134.33,134.29,12.5306]
[1725952583264,2.8067,134.36,134.3,3.3505]
[1725952583465,11.9867,134.36,134.31,3.7126685]
[1725952584063,3.3496,134.34,134.31,3.7126685]
[1725952586564,3.3496,134.34,134.3,12.5305]
[1725952587371,25.7193,134.35,134.31,3.3502]
[1725952587562,1.3075,134.37,134.32,12.82293162]
[1725952587563,22.37,134.34,134.32,12.82293162]
[1725952587763,22.37,134.34,134.32,9.18]
[1725952588167,22.37,134.34,134.32,12.5299]
[1725952588365,22.37,134.34,134.33,9.18]
[1725952588566,1.3075,134.37,134.33,9.18]
[1725952588768,22.37,134.36,134.33,12.5297]
[1725952589863,1.3075,134.37,134.33,12.5297]
[1725952590776,3.349,134.36,134.33,12.5297]
[1725952591571,3.349,134.36,134.34,3.3495]
[1725952591970,3.349,134.36,134.33,12.5296]
[1725952595377,3.349,134.36,134.33,9.18]
[1725952596777,3.349,134.36,134.32,7.05651403]
[1725952596972,3.3493,134.35,134.32,7.05651403]
[1725952597175,3.3493,134.35,134.32,12.88661403]
[1725952601783,3.3493,134.35,134.32,3.70661403]
[1725952601983,3.3493,134.35,134.32,9.18]
[1725952602186,3.3493,134.35,134.33,3.63180357]
[1725952602982,3.3495,134.34,134.32,9.18]
[1725952603385,3.3495,134.34,134.32,12.95428929]
[1725952604088,3.3494,134.35,134.32,12.95428929]
[1725952606389,3.3495,134.34,134.32,12.95428929]
[1725952607983,22.37,134.36,134.26,1.3888]
[1725952607984,3.3497,134.33,134.26,1.3888]
[1725952608186,3.3497,134.33,134.31,9.18]
[1725952608387,3.3497,134.33,134.31,12.88802144]
[1725952608588,31.55,134.36,134.26,1.3888]
[1725952608780,22.37,134.34,134.26,1.3888]
[1725952608992,22.37,134.34,134.29,9.18]
[1725952609295,3.3501,134.32,134.29,9.18]
[1725952613388,22.37,134.33,134.31,9.18]
[1725952613592,22.37,134.33,134.31,12.88596734]
[1725952614292,22.37,134.36,134.31,12.88596734]
[1725952614497,22.37,134.32,134.31,12.88596734]
[1725952615100,22.37,134.32,134.31,9.18]
[1725952615595,3.3498,134.33,134.31,9.18]
[1725952617096,3.3498,134.33,134.31,12.88522264]
[1725952619002,3.3498,134.33,134.31,9.18]
[1725952620893,3.3498,134.33,134.3,9.18]
[1725952621901,22.37,134.34,134.29,9.18]
[1725952622894,22.37,134.34,134.28,3.3509]
[1725952623102,23.7654,134.33,134.28,9.18]
[1725952623902,3.3502,134.32,134.28,12.531]
[1725952626900,23.7654,134.33,134.26,1.3888]
[1725952627100,23.7654,134.33,134.27,9.18]
[1725952627904,3.3504,134.31,134.27,12.5311]
[1725952630303,3.3502,134.32,134.29,9.18]
[1725952630604,2.6392,134.37,134.31,9.18]
[1725952630809,3.3494,134.35,134.31,12.81128491]
[1725952631201,25.0092,134.37,134.31,12.81128491]
[1725952631400,25.0092,134.37,134.31,16.16138491]
[1725952631401,3.3494,134.35,134.31,16.16138491]
[1725952631700,25.0092,134.37,134.31,16.16138491]
[1725952634207,3.3494,134.35,134.32,3.3499]
[1725952637602,3.349,134.36,134.33,3.3497]
[1725952637899,6.694,134.45,134.35,9.18]
[1725952637900,22.37,134.44,134.35,9.18]
[1725952638107,22.37,134.41,134.35,9.18]
[1725952638301,3.3484,134.39,134.36,3.349]
[1725952638500,22.37,134.39,134.35,12.87814805]
[1725952639908,9.18,134.39,134.32,1.3394]
[1725952640207,9.18,134.39,134.26,8.0918]
[1725952640208,31.55,134.38,134.33,3.69156052]
[1725952640408,31.55,134.38,134.31,9.18]
[1725952640602,22.37,134.38,134.34,9.18]
[1725952641013,22.37,134.37,134.35,3.3491]
[1725952641204,22.37,134.37,134.35,6.99673996]
[1725952641711,22.37,134.37,134.36,9.18]
[1725952642210,22.37,134.38,134.36,9.18]
[1725952643299,25.7181,134.4,134.37,9.18]
[1725952643704,22.37,134.4,134.37,9.18]
[1725952643911,22.37,134.4,134.38,3.3485]
[1725952644323,22.37,134.39,134.38,3.3485]
[1725952644614,22.37,134.39,134.37,12.5286]
[1725952645314,3.3479,134.41,134.37,12.5286]
[1725952645506,3.348,134.4,134.36,6.989468]
[1725952645812,3.348,134.4,134.36,12.5289]
[1725952646014,31.55,134.42,134.37,3.3487]
[1725952646015,3.3479,134.41,134.37,3.3487]
[1725952646808,3.3479,134.41,134.38,9.18]
[1725952646809,25.7179,134.41,134.38,9.18]
[1725952647919,3.3479,134.41,134.38,9.18]
[1725952648913,3.3481,134.4,134.36,7.0819642]
[1725952649114,3.3481,134.4,134.36,3.3489]
[1725952649418,22.37,134.41,134.36,3.3489]
[1725952649616,22.37,134.41,134.37,12.86393628]
[1725952649617,3.3481,134.4,134.37,12.86393628]
[1725952652014,3.3481,134.4,134.37,9.18]
[1725952652216,3.3483,134.39,134.37,9.18]
[1725952652721,3.3481,134.4,134.37,9.18]
[1725952653220,1.3441,134.43,134.37,9.18]
[1725952653421,3.3481,134.4,134.37,9.18]
[1725952654524,22.37,134.4,134.36,3.76879086]
[1725952654729,22.37,134.37,134.32,1.4085]
[1725952654923,22.37,134.37,134.33,12.98007446]
[1725952655220,25.7189,134.37,134.33,16.32967446]
[1725952656119,25.7189,134.37,134.33,12.98007446]
[1725952656120,23.6597,134.37,134.33,12.98007446]
[1725952656323,23.6597,134.37,134.33,3.80007446]
[1725952656517,3.3491,134.36,134.32,12.5298]
[1725952656721,3.3491,134.36,134.32,9.18]
[1725952657229,22.37,134.37,134.35,9.18]
[1725952657525,22.37,134.37,134.36,9.18]
[1725952658221,3.3483,134.39,134.36,3.68858286]
[1725952658523,3.3483,134.39,134.35,12.5291]
[1725952659125,3.3483,134.39,134.35,16.19311712]
[1725952659918,3.3486,134.38,134.35,9.18]
[1725952660226,3.3486,134.38,134.34,3.3494]
[1725952660227,3.3486,134.38,134.34,12.5294]
[1725952660425,31.55,134.39,134.33,12.81275163]
[1725952660625,31.55,134.39,134.33,9.18]
[1725952661022,31.55,134.39,134.33,12.96014606]
[1725952661221,3.3488,134.37,134.33,16.30974606]
[1725952662221,3.349,134.36,134.32,3.3498]
[1725952662426,22.37,134.36,134.32,9.18]
[1725952662731,31.55,134.36,134.3,9.18]
[1725952663024,3.3496,134.34,134.3,12.5303]
[1725952663224,3.3496,134.34,134.31,3.71379644]
[1725952663523,3.3493,134.35,134.31,7.06399644]
[1725952664222,22.37,134.35,134.32,12.53]
[1725952664525,22.37,134.35,134.32,3.35]
[1725952665327,3.3491,134.36,134.32,3.35]
[1725952665626,3.3494,134.35,134.31,16.24399644]
[1725952666829,3.3491,134.36,134.31,16.24399644]
[1725952667017,3.3491,134.36,134.32,3.35]
[1725952667218,22.37,134.37,134.31,12.89379644]
[1725952667424,25.7189,134.37,134.33,9.18]
[1725952668326,22.37,134.36,134.33,12.5297]
[1725952669232,22.37,134.35,134.33,12.5297]
[1725952669526,22.37,134.35,134.32,3.3499]
[1725952670424,22.37,134.34,134.32,3.3499]
[1725952671425,22.37,134.33,134.32,3.3499]
[1725952672529,3.3493,134.35,134.32,3.3499]
[1725952673926,22.37,134.35,134.33,3.3496]
[1725952674328,22.37,134.35,134.34,9.18]
[1725952674920,3.349,134.37,134.34,9.18]
[1725952675431,3.349,134.37,134.34,12.5295]
[1725952676027,3.349,134.36,134.34,12.5295]
[1725952677629,3.3488,134.37,134.34,12.5295]
[1725952678332,3.349,134.36,134.34,12.5295]
[1725952680538,3.3493,134.35,134.32,9.18]
[1725952680735,3.3493,134.35,134.31,12.89379644]
[1725952680936,3.3493,134.35,134.32,3.3499]
[1725952681532,3.3493,134.35,134.32,7.0981289]
[1725952681735,3.3495,134.34,134.32,3.7482289]
[1725952682529,31.55,134.35,134.28,1.3214]
[1725952682725,32.9441,134.35,134.29,9.18]
[1725952683231,3.3499,134.33,134.29,12.5306]
[1725952683934,22.37,134.34,134.32,9.18]
[1725952684141,1.3941,134.35,134.33,12.88094791]
[1725952684330,22.35,134.39,134.33,9.18]
[1725952684534,3.3489,134.37,134.33,12.5296]
[1725952684827,3.3489,134.37,134.33,16.30789356]
[1725952685236,22.35,134.38,134.35,9.18]
[1725952685636,22.35,134.38,134.35,12.81644001]
[1725952686040,22.35,134.38,134.35,16.16554001]
[1725952686242,22.35,134.38,134.35,12.81644001]
[1725952687136,3.3485,134.38,134.27,1.4015]
[1725952687336,1.3941,134.39,134.34,9.18]
[1725952687537,22.35,134.38,134.33,3.81468245]
[1725952687737,3.349,134.37,134.32,12.5298]
[1725952687934,3.349,134.37,134.33,3.65423274]
[1725952688133,22.35,134.38,134.32,12.5298]
[1725952688333,22.35,134.36,134.31,16.30383241]
[1725952688741,22.35,134.36,134.31,12.95373241]
[1725952689946,25.6991,134.36,134.32,12.5298]
[1725952690344,22.35,134.36,134.33,3.3497]
[1725952690550,25.6988,134.37,134.33,3.3497]
[1725952691441,3.349,134.36,134.32,12.5299]
[1725952692653,25.6989,134.37,134.33,3.3497]
[1725952694051,22.35,134.37,134.34,3.3493]
[1725952696551,3.3486,134.38,134.34,3.3493]
[1725952696751,3.3486,134.38,134.35,3.3492]
[1725952701954,23.7441,134.39,134.34,3.3494]
[1725952702158,31.53,134.37,134.31,3.77373241]
[1725952702345,22.35,134.37,134.34,9.18]
[1725952702547,22.35,134.37,134.36,3.349]
[1725952702854,22.35,134.37,134.35,3.63748045]
[1725952703048,3.3486,134.38,134.35,6.98658045]
[1725952703245,1.3941,134.39,134.36,9.18]
[1725952703653,1.3941,134.39,134.37,12.5286]
[1725952704155,1.3941,134.39,134.38,3.3485]
[1725952704347,22.35,134.41,134.38,3.3485]
[1725952705151,3.348,134.41,134.38,3.3485]
[1725952705558,23.7349,134.42,134.37,12.5287]
[1725952705758,3.3484,134.39,134.35,9.18]
[1725952705949,25.6984,134.39,134.35,12.86475913]
[1725952706151,25.6984,134.39,134.35,3.68475913]
[1725952706152,22.35,134.39,134.35,3.68475913]
[1725952706351,3.3488,134.37,134.33,9.18]
[1725952706859,3.3488,134.37,134.34,3.81244881]
[1725952709154,3.3488,134.37,134.34,16.34184881]
[1725952709350,22.35,134.38,134.35,9.18]
[1725952709551,22.35,134.38,134.37,9.18]
[1725952710461,25.6982,134.4,134.37,9.18]
[1725952712058,3.3483,134.39,134.35,12.5291]
[1725952712464,3.3483,134.39,134.35,9.18]
[1725952712664,3.3483,134.39,134.36,3.70877819]
[1725952713662,25.6981,134.4,134.36,7.05757819]
[1725952713865,3.3481,134.4,134.37,9.18]
[1725952714070,23.7349,134.42,134.38,12.5285]
[1725952714359,23.7349,134.42,134.38,16.25067669]
[1725952715167,27.0826,134.42,134.38,16.25067669]
[1725952715564,3.3479,134.41,134.38,9.18]
[1725952715860,23.7349,134.42,134.38,3.78693609]
[1725952715861,32.9149,134.42,134.38,3.78693609]
[1725952716063,22.35,134.41,134.38,12.96693609]
[1725952716267,22.35,134.41,134.39,3.3482]
[1725952716766,22.35,134.41,134.38,16.20963684]
[1725952717766,3.3478,134.41,134.38,9.18]
[1725952717969,23.7349,134.42,134.37,12.5286]
[1725952718264,23.7349,134.42,134.37,16.31032556]
[1725952718465,3.3479,134.41,134.37,16.31032556]
[1725952720168,22.35,134.41,134.38,3.3485]
[1725952721170,25.6978,134.41,134.37,16.31042556]
[1725952721370,3.3478,134.41,134.37,16.31042556]
[1725952723168,27.0825,134.42,134.38,3.3483]
[1725952723867,27.0825,134.42,134.38,12.5283]
[1725952725465,23.7349,134.42,134.38,9.18]
[1725952725660,22.35,134.41,134.39,9.18]
[1725952726266,22.35,134.41,134.4,12.528]
[1725952726469,22.35,134.47,134.4,12.90794938]
[1725952726668,22.35,134.47,134.42,9.18]
[1725952726872,3.3469,134.45,134.42,9.18]
[1725952728171,3.347,134.44,134.42,9.18]
[1725952730772,3.3472,134.43,134.4,3.76237255]
[1725952730971,3.3472,134.43,134.39,9.18]
[1725952731480,3.3472,134.43,134.4,3.683858]
[1725952733577,25.6971,134.44,134.4,3.348]
[1725952733778,25.6971,134.44,134.41,12.92971801]
[1725952734283,3.3471,134.44,134.41,12.92971801]
[1725952735882,3.3473,134.43,134.41,12.92971801]
[1725952736978,22.35,134.45,134.41,12.92971801]
[1725952736979,3.3471,134.44,134.41,12.92971801]
[1725952738677,25.697,134.45,134.41,16.27741801]
[1725952738883,22.35,134.45,134.41,16.27741801]
[1725952739285,25.6968,134.45,134.41,16.27741801]
[1725952739889,3.347,134.44,134.41,16.27741801]
[1725952740292,22.35,134.45,134.41,16.27741801]
[1725952740485,25.697,134.45,134.41,16.27741801]
[1725952740791,22.35,134.45,134.41,12.92971801]
[1725952741489,3.3471,134.44,134.41,12.92971801]
[1725952742083,3.3471,134.44,134.41,16.27741801]
[1725952742588,25.6968,134.45,134.41,16.27741801]
[1725952743188,3.3468,134.45,134.42,12.5275]
[1725952743692,3.3468,134.45,134.42,9.18]
[1725952745593,3.3468,134.45,134.42,12.5275]
[1725952745796,3.3466,134.46,134.43,9.18]
[1725952746886,22.35,134.47,134.44,9.18]
[1725952747494,22.35,134.47,134.44,12.5268]
[1725952747984,22.35,134.47,134.44,3.3468]
[1725952748188,3.3465,134.46,134.43,12.5272]
[1725952749288,22.35,134.47,134.43,12.5272]
[1725952749289,25.6964,134.47,134.43,12.5272]
[1725952749694,31.53,134.47,134.42,12.5274]
[1725952750096,3.3466,134.46,134.42,12.5274]
[1725952750692,3.3468,134.45,134.42,12.5274]
[1725952751095,31.53,134.47,134.41,3.74971801]
[1725952751295,3.3469,134.45,134.41,9.18]
[1725952751500,3.3469,134.45,134.41,12.5276]
[1725952752095,3.3467,134.46,134.42,7.13879464]
[1725952752295,31.53,134.47,134.41,9.18]
[1725952752495,31.53,134.47,134.41,12.86172347]
[1725952752995,3.3468,134.45,134.42,12.5275]
[1725952755200,2.6432,134.48,134.44,9.18]
[1725952755396,1.3129,134.48,134.44,9.18]
[1725952755796,22.35,134.47,134.44,12.5269]
[1725952756699,1.3129,134.48,134.44,12.5269]
[1725952757095,3.3463,134.47,134.44,12.5269]
[1725952761607,3.3463,134.47,134.44,3.3469]
[1725952761809,31.53,134.47,134.42,9.18]
[1725952763206,31.53,134.47,134.42,12.5275]
[1725952764710,3.3469,134.45,134.42,12.5275]
[1725952765711,31.53,134.47,134.41,7.02932347]
[1725952765712,3.347,134.44,134.41,7.02932347]
[1725952765908,3.347,134.44,134.41,3.3476]
[1725952766504,3.347,134.44,134.42,3.65169223]
[1725952768416,3.3468,134.45,134.42,12.5274]
[1725952768714,3.3468,134.45,134.42,9.18]
[1725952768916,3.3468,134.45,134.42,12.82833692]
[1725952769911,23.6355,134.47,134.42,12.82833692]
[1725952770214,23.6355,134.47,134.28,3.75744047]
[1725952770215,31.53,134.43,134.28,3.75744047]
[1725952770411,1.3142,134.42,134.36,9.18]
[1725952770615,22.35,134.4,134.3,6.02881]
[1725952770918,22.35,134.4,134.35,9.18]
[1725952772112,3.3484,134.39,134.35,12.5292]
[1725952772317,22.35,134.39,134.36,9.18]
[1725952772520,22.35,134.39,134.36,12.83899955]
[1725952773012,22.35,134.39,134.36,16.18779955]
[1725952773413,3.348,134.4,134.36,16.18779955]
[1725952773806,25.6978,134.41,134.37,3.3487]
[1725952774412,22.35,134.4,134.37,3.3487]
[1725952774719,25.698,134.4,134.36,16.18789955]
[1725952775510,3.348,134.4,134.36,16.18789955]
[1725952775705,3.348,134.4,134.36,9.18]
[1725952775908,3.3483,134.39,134.35,12.5291]
[1725952776321,34.1608,134.42,134.36,12.82066917]
[1725952776521,3.3481,134.4,134.36,12.5288]
[1725952776909,3.3478,134.41,134.37,3.3487]
[1725952777114,3.3478,134.41,134.37,7.01207218]
[1725952777714,3.348,134.4,134.36,12.5288]
[1725952778321,3.348,134.4,134.36,16.29582642]
[1725952779017,3.348,134.4,134.36,12.5288]
[1725952779611,3.348,134.4,134.36,16.22585991]
[1725952783918,3.348,134.4,134.36,3.3488]
[1725952784116,3.348,134.4,134.35,9.18]
[1725952784117,22.35,134.39,134.35,3.3491]
[1725952784522,3.3485,134.38,134.35,3.3491]
[1725952784722,3.3485,134.38,134.35,6.99768552]
[1725952785130,22.35,134.38,134.34,9.18]
[1725952785722,22.35,134.38,134.35,7.01033872]
[1725952786128,22.35,134.39,134.35,7.01033872]
[1725952787129,3.3489,134.37,134.33,12.5295]
[1725952788431,25.6985,134.38,134.34,3.3495]
[1725952790435,3.3484,134.39,134.35,3.3491]
[1725952790637,25.6984,134.39,134.35,3.3491]
[1725952791535,3.3485,134.38,134.35,3.3491]
[1725952794124,2.6308,134.42,134.36,9.18]
[1725952794437,22.35,134.41,134.36,9.18]
[1725952795135,3.3481,134.4,134.37,3.3487]
[1725952797031,25.6981,134.4,134.37,3.3487]
[1725952799244,25.6981,134.4,134.38,3.3485]
[1725952800840,25.6981,134.4,134.37,3.3487]
[1725952803037,25.6981,134.4,134.38,3.3485]
[1725952803239,25.6979,134.41,134.38,3.3485]
[1725952804230,22.35,134.41,134.37,12.95800375]
[1725952804431,22.35,134.41,134.39,9.18]
[1725952804834,22.35,134.41,134.4,3.348]
[1725952805140,22.35,134.45,134.4,9.18]
[1725952805835,25.6969,134.45,134.41,3.3476]
[1725952809747,3.3469,134.45,134.41,3.3476]
[1725952811043,22.35,134.45,134.42,3.3475]
[1725952811238,22.35,134.45,134.43,9.18]
[1725952812146,1.3083,134.46,134.43,9.18]
[1725952812447,1.3083,134.46,134.43,12.5271]
[1725952813041,22.35,134.45,134.42,3.3475]
[1725952813239,22.35,134.45,134.42,12.5275]
[1725952813440,22.35,134.45,134.42,9.18]
[1725952814043,1.3083,134.46,134.43,3.3472]
[1725952815742,1.3083,134.46,134.44,3.3469]
[1725952815949,1.3083,134.46,134.37,3.77800375]
[1725952815950,22.35,134.47,134.45,12.82584073]
[1725952816141,22.35,134.47,134.45,9.18]
[1725952816344,22.35,134.47,134.45,12.5266]
[1725952816546,22.35,134.47,134.45,12.99174676]